Cogmind - Beta 11.1 @@@ ROGUE MODE // 2022.07.29 @ 19:33:35 Player: Obelisk Result: Self-destructed Performance ------------- Evolutions (2) 1000 Regions Visited (5) 1000 Robots Destroyed (42) 210 Value Destroyed (1283) 1283 Prototype IDs (0) 0 Alien Tech Used (0) 0 Bonus (0) 0 TOTAL SCORE: 3493 Bonus ------- None Cogmind --------- Core Integrity 386/550 Matter 211/300 Energy 100/100 System Corruption 0% Temperature Cool (0) Movement Treading (240) Ox1 Location -8/Materials Parts ------- > --- POWER (1) -------- (None) > --- PROPULSION (2) --- Light Treads > --- UTILITY (4) ------ Large Storage Unit Visual Processing Unit Targeting Computer > --- WEAPON (4) ------- Beamcaster Flak Cannon > --- INVENTORY (15) --- Cryofiber Web Improved Heat Sink Targeting Computer Kinecellerator Shield Generator Gatling Laser Light Assault Rifle High-powered Shotgun Mini Grenade Launcher Improved Datajack Peak State ------------ > --- POWER ------------ Nuclear Core > --- PROPULSION ------- Light Treads Light Treads > --- UTILITY ---------- Improved Heat Sink Small Storage Unit Improved Signal Interpreter Targeting Computer > --- WEAPON ----------- Beamcaster Heavy Assault Rifle Flak Cannon Missile Launcher > --- INVENTORY -------- Improved Heat Sink Targeting Computer Kinecellerator Shield Generator Gatling Laser Light Assault Rifle Mini Grenade Launcher Improved Datajack [Rating: 28] Favorites ----------- Power Ion Engine Engine Ion Engine Power Core Nuclear Core Propulsion Light Treads Treads Light Treads Utility Small Storage Unit Device Terrain Scanner Storage Small Storage Unit Processor Targeting Computer Weapon Light Assault Rifle Energy Gun Beamcaster Ballistic Gun Light Assault Rifle Ballistic Cannon Flak Cannon Launcher Missile Launcher Build | -11 -10 -10 -10 -9 -8 ------- Run | Scr Mat Min Exi Min Mat Slots Evolved 4 | . . . . . 4 Power . | . . . . . . Propulsion . | . . . . . . Utility 2 | . . . . . 2 Weapon 2 | . . . . . 2 Parts Attached 31 | 6 5 . . 3 17 Power 4 | 1 1 . . 1 1 Engine 3 | 1 1 . . 1 . Core 1 | . . . . . 1 Reactor . | . . . . . . Propulsion 7 | 2 1 . . 1 3 Treads 7 | 2 1 . . 1 3 Leg . | . . . . . . Wheel . | . . . . . . Hover . | . . . . . . Flight . | . . . . . . Utility 8 | 1 1 . . . 6 Device 3 | . 1 . . . 2 Storage 2 | 1 . . . . 1 Processor 3 | . . . . . 3 Hackware . | . . . . . . Protection . | . . . . . . Artifact . | . . . . . . Weapon 12 | 2 2 . . 1 7 Energy Gun 3 | . . . . 1 2 Energy Cannon . | . . . . . . Ballistic Gun 5 | 2 1 . . . 2 Ballistic Cannon 1 | . . . . . 1 Launcher 3 | . 1 . . . 2 Special Weapon . | . . . . . . Impact Weapon . | . . . . . . Slashing Weapon . | . . . . . . Piercing Weapon . | . . . . . . Special Melee Weapon . | . . . . . . Unidentified Prototypes . | . . . . . . Parts Lost 7 | . . . . . 7 Power 1 | . . . . . 1 Propulsion 2 | . . . . . 2 Utility 2 | . . . . . 2 Weapon 2 | . . . . . 2 Highest Loss Streak 5 | . . . . . 5 To Critical Strikes . | . . . . . . Average Slot Usage (%) 97 | . 91 100 100 100 97 Engine 8 | . 14 14 14 14 . Core 3 | . . . . . 8 Treads 23 | . 28 28 28 28 17 Device 10 | . 5 14 14 14 10 Storage 11 | . 14 14 14 14 9 Processor 6 | . . . . . 15 Energy Gun 4 | . . . . 6 9 Ballistic Gun 19 | . 23 28 28 21 12 Ballistic Cannon 2 | . . . . . 5 Launcher 4 | . 4 . . . 8 Naked Turns . | . . . . . . Heaviest Build 48 | 13 15 14 14 16 48 Greatest Support 40 | 40 40 40 40 40 40 Greatest Overweight (x) 1 | . . . . . 1 Average Overweight (x) . | . . . . . . Largest Inventory Capacity 15 | 8 8 8 8 8 15 Average Capacity 9 | 6 8 8 8 8 11 Most Carried 11 | 5 4 4 4 7 11 Average Carried 5 | 1 2 4 4 5 7 Final Capacity 15 | 8 8 8 8 8 15 Final Carried 10 | 1 4 4 4 6 10 Class Distribution -------------------- 61% | Mutant 29% | Scavenger-Gunner 8% | Gunner Dominant Class ---------------- Mutant | -10/Materials Mutant | -10/Mines Mutant | -10/Exiles Mutant | -9/Mines Scavenger-Gunner | -8/Materials Resources | -11 -10 -10 -10 -9 -8 ----------- Run | Scr Mat Min Exi Min Mat Matter Collected 968 | 232 195 . . 144 397 Remotely . | . . . . . . Salvage Created 1398 | . 256 . . 145 997 Parts 76 | . 21 . . 7 48 Haulers Intercepted 2 | . 1 . . . 1 Recyclers Shooed 3 | . 1 . . . 2 Parts Field Recycled . | . . . . . . Retrieved Matter . | . . . . . . Parts Self-Destructed . | . . . . . . Prevented . | . . . . . . Kills | -11 -10 -10 -10 -9 -8 ------- Run | Scr Mat Min Exi Min Mat Combat Hostiles Destroyed 33 | . 7 . . 5 21 Guns 17 | . 1 . . 5 11 Cannons 4 | . . . . . 4 AOE 12 | . 6 . . . 6 Classes Destroyed 11 | . 5 . . 2 4 Builder 4 | . 4 . . . . Tunneler 1 | . 1 . . . . Hauler 2 | . 1 . . . 1 Recycler 2 | . . . . . 2 Operator 1 | . 1 . . . . Watcher 1 | . . . . . 1 Swarmer 4 | . . . . . 4 Grunt 24 | . 7 . . 2 15 Brawler 1 | . . . . 1 . Sentry 2 | . . . . . 2 Assembled 2 | . . . . 2 . Best Kill Streak 10 | . 10 . . 3 7 Combat Bots Only 7 | . 5 . . 3 7 Max Kills in Single Turn 3 | . 3 . . 1 2 Gunslinging 1 | . . . . . 1 Exploded 2 | . 1 . . . 2 Melee . | . . . . . . Uniques/NPCs Destroyed . | . . . . . . Combat | -11 -10 -10 -10 -9 -8 -------- Run | Scr Mat Min Exi Min Mat Damage Taken 1654 | . 193 . . 273 1188 Core 277 | . 38 . . 75 164 Absorbed by Shields 9 | . . . . . 9 Core Remaining (%) 77 | 100 . . . 54 . Volleys Fired 97 | . 24 . . 16 57 Largest 4 | . 2 . . 2 4 Hottest 178 | . 50 . . 100 178 Shots Fired 233 | . 44 . . 32 157 Gun 191 | . 31 . . 32 128 Cannon 25 | . . . . . 25 Launcher 17 | . 13 . . . 4 Special . | . . . . . . Kinetic 154 | . 31 . . 24 99 Thermal 62 | . . . . 8 54 Explosive 17 | . 13 . . . 4 Electromagnetic . | . . . . . . Robot Hit Streak 13 | . 7 . . 4 13 Robot Miss Streak 6 | . 3 . . 5 6 Penetration Max . | . . . . . . Secondary Targets 5 | . . . . 3 2 Max Gunslinging Chain 1 | . . . . 1 1 Shots Hit Robots 139 | . 18 . . 18 103 Core Hits 103 | . 27 . . 10 66 Critical Kills . | . . . . . . Critical Parts Destroyed . | . . . . . . Critical Strikes 3 | . . . . . 3 Burn 3 | . . . . . 3 Melee Attacks . | . . . . . . Impact . | . . . . . . Slashing . | . . . . . . Piercing . | . . . . . . Sneak Attacks . | . . . . . . Combat Hostiles . | . . . . . . Follow-up Attacks . | . . . . . . Damage Inflicted 3301 | . 961 . . 209 2131 Guns 1660 | . 214 . . 209 1237 Cannons 497 | . . . . . 497 Explosions 1144 | . 747 . . . 397 Melee . | . . . . . . Ramming . | . . . . . . Kinetic 1320 | . 214 . . 128 978 Thermal 837 | . . . . 81 756 Explosive 1144 | . 747 . . . 397 Electromagnetic . | . . . . . . Impact . | . . . . . . Slashing . | . . . . . . Piercing . | . . . . . . Highest Corruption . | . . . . . . Average Corruption . | . . . . . . Corruption Purged . | . . . . . . Corruption Blocked . | . . . . . . Overload Shots . | . . . . . . Overflow Damage 18 | . 17 . . . 1 Projectiles . | . . . . . . Explosions 18 | . 17 . . . 1 Melee . | . . . . . . Knockbacks 20 | . . . . . 20 Impact . | . . . . . . Kinetic 17 | . . . . . 17 Secondary 3 | . . . . . 3 Self-Inflicted Damage 22 | . . . . . 22 Shots 1 | . . . . . 1 Rammed . | . . . . . . Targets Rammed . | . . . . . . Kicked . | . . . . . . Crushed . | . . . . . . Highest Temperature 496 | . 5 . . 312 496 Average Temperature 102 | . 2 . . 121 102 Received Heat Transfer 612 | . 81 . . 60 471 Effects 5 | . . . . . 5 Interference 2 | . . . . . 2 Damage (major) 3 | . . . . . 3 Siege Activations . | . . . . . . Robots Corrupted . | . . . . . . Combat Hostiles . | . . . . . . Parts Fried . | . . . . . . Impact Corruptions . | . . . . . . Robots Melted . | . . . . . . Combat Hostiles . | . . . . . . Parts Melted 1 | . . . . . 1 Heat Transferred 1831 | . . . . 175 1656 Parts Sabotaged . | . . . . . . Parts Stolen . | . . . . . . Parts Stripped . | . . . . . . Power Chain Reactions . | . . . . . . Missiles Intercepted . | . . . . . . Alert | -11 -10 -10 -10 -9 -8 ------- Run | Scr Mat Min Exi Min Mat Peak Influence 379 | . 357 61 . 85 379 Initial 61 | . . 61 . . . Average 173 | . 253 61 . 62 205 Maximum Alert Level 1 | . 1 . . . 1 Low Security (%) 54 | 100 31 100 . 100 38 Level 1 45 | . 68 . . . 61 Level 2 . | . . . . . . Level 3 . | . . . . . . Level 4 . | . . . . . . Level 5 . | . . . . . . High Security . | . . . . . . Max Security . | . . . . . . Squads Dispatched 6 | . 2 . . 1 3 Investigation 3 | . 1 . . 1 1 Extermination . | . . . . . . Reinforcement 3 | . 1 . . . 2 Assault . | . . . . . . Garrison . | . . . . . . Intercept . | . . . . . . Searches Triggered . | . . . . . . Construction Impeded 2 | . . . . . 2 Haulers Reinforced . | . . . . . . Active Scanning Responses . | . . . . . . Cargo Convoy Interrupts . | . . . . . . Stealth | -11 -10 -10 -10 -9 -8 --------- Run | Scr Mat Min Exi Min Mat Distress Signals 5 | . 3 . . . 2 Communications Jammed . | . . . . . . Distress Signals . | . . . . . . Times Spotted 52 | . 14 . . 5 33 Peak Tracking Total 5 | . 5 . . 3 5 Tactical Retreats 2 | . . . . . 2 Traps | -11 -10 -10 -10 -9 -8 ------- Run | Scr Mat Min Exi Min Mat Traps Triggered 3 | . 2 . . . 1 Indirectly . | . . . . . . Trap Hack Attempts . | . . . . . . Triggered . | . . . . . . Disarmed . | . . . . . . Reprogrammed . | . . . . . . Reused . | . . . . . . Traps Extracted . | . . . . . . Installed . | . . . . . . Triggered . | . . . . . . Machines | -11 -10 -10 -10 -9 -8 ---------- Run | Scr Mat Min Exi Min Mat Machines Disabled . | . . . . . . Max in Single Turn . | . . . . . . Machines Sabotaged . | . . . . . . Garrisons Compromised . | . . . . . . Overloaded Fab Kills . | . . . . . . Hacking | -11 -10 -10 -10 -9 -8 --------- Run | Scr Mat Min Exi Min Mat Machines Accessed 1 | . . . . 1 . Terminals . | . . . . . . Fabricators . | . . . . . . Repair Stations . | . . . . . . Recycling Units . | . . . . . . Scanalyzers . | . . . . . . Garrison Access . | . . . . . . Total Hacks 1 | . . . . 1 . Successful 1 | . . . . 1 . Failed . | . . . . . . Catastrophic . | . . . . . . Database Lockouts . | . . . . . . Manual . | . . . . . . Terminals . | . . . . . . Fabricators . | . . . . . . Repair Stations . | . . . . . . Recycling Units . | . . . . . . Scanalyzers . | . . . . . . Garrison Access . | . . . . . . Terminal Hacks 1 | . . . . 1 . Open Door 1 | . . . . 1 . Fabricator Hacks . | . . . . . . Repair Station Hacks . | . . . . . . Recycling Unit Hacks . | . . . . . . Scanalyzer . | . . . . . . Garrison Access Hacks . | . . . . . . Unauthorized Hacks . | . . . . . . Terminals . | . . . . . . Fabricators . | . . . . . . Repair Stations . | . . . . . . Recycling Units . | . . . . . . Scanalyzers . | . . . . . . Garrison Access . | . . . . . . Data Cores Recovered . | . . . . . . Used . | . . . . . . Hacking Detections . | . . . . . . Full Trace Events . | . . . . . . Feedback Events . | . . . . . . Feedback Blocked . | . . . . . . Robot Schematics Acquired . | . . . . . . Robots Built . | . . . . . . Authchips . | . . . . . . Time . | . . . . . . Total Robot Build Rating . | . . . . . . Part Schematics Acquired . | . . . . . . Parts Built . | . . . . . . Authchips . | . . . . . . Time . | . . . . . . Total Part Build Rating . | . . . . . . Parts Repaired . | . . . . . . Time . | . . . . . . Parts Recycled . | . . . . . . Recycled Matter . | . . . . . . Retrieved Matter . | . . . . . . Retrieved Components . | . . . . . . Parts Scanalyzed . | . . . . . . Part Schematics Acquired . | . . . . . . Parts Damaged . | . . . . . . Bothacking | -11 -10 -10 -10 -9 -8 ------------ Run | Scr Mat Min Exi Min Mat Used RIF Installer . | . . . . . . Robots Hacked . | . . . . . . Non-combat . | . . . . . . Combat . | . . . . . . Robot Hacks Applied . | . . . . . . Relay Couplers Released . | . . . . . . Fabnet Peak Effective % . | . . . . . . Robots Rewired . | . . . . . . Allies Hacked . | . . . . . . Hacks Repelled . | . . . . . . Allies | -11 -10 -10 -10 -9 -8 -------- Run | Scr Mat Min Exi Min Mat Total Allies . | . . . . . . Largest Group . | . . . . . . Highest-Rated Group . | . . . . . . Highest-Rated Ally . | . . . . . . Total Orders . | . . . . . . Ally Attacks . | . . . . . . Total Damage . | . . . . . . Kills . | . . . . . . Allies Corrupted . | . . . . . . Allies Melted . | . . . . . . Intel | -11 -10 -10 -10 -9 -8 ------- Run | Scr Mat Min Exi Min Mat Robot Analysis Total . | . . . . . . Derelict Logs Recovered 1 | . . . . 1 . Drone Launches . | . . . . . . Drone Recoveries . | . . . . . . Exploration | -11 -10 -10 -10 -9 -8 ------------- Run | Scr Mat Min Exi Min Mat Turns Passed 2074 | 56 417 55 303 406 837 Spaces Moved 994 | 32 208 35 190 213 316 Core 11 | 11 . . . . . Treads 983 | 21 208 35 190 213 316 Legs . | . . . . . . Wheels . | . . . . . . Hover . | . . . . . . Flight . | . . . . . . Fastest Speed 50 | 50 160 160 160 160 160 Average Speed 170 | 122 160 160 160 160 197 Slowest Speed 240 | 160 160 160 160 160 240 Overloaded Moves . | . . . . . . Propulsion Burnouts . | . . . . . . Robots Hopped . | . . . . . . Cave-ins Triggered . | . . . . . . Exploration Rate (%) 34 | 3 50 8 51 55 39 Regions Visited 5 Branch Regions 3 Pre-discovered Areas . | . . . . . . Known Exits Taken . | . . . . . . Unknown Exits Taken 5 | 1 1 1 1 1 . Scrap Searched 1 | . . . . 1 . Spaces Dug . | . . . . . . Terrain Destroyed 103 | . 56 . . . 47 Melee . | . . . . . . Projectile . | . . . . . . AOE 103 | . 56 . . . 47 Terrain Rammed . | . . . . . . Walls Destroyed . | . . . . . . Machines Disabled . | . . . . . . Actions | -11 -10 -10 -10 -9 -8 --------- Run | Scr Mat Min Exi Min Mat Total 1184 | 49 249 34 189 248 415 Wait 23 | 5 5 . . 7 6 Move 989 | 31 207 34 189 212 316 Hop . | . . . . . . Pick Up 32 | 7 6 . . 6 13 Fast Attach 1 | . . . . . 1 Attach 12 | 6 1 . . . 5 Detach . | . . . . . . Swap 18 | . 4 . . 3 11 Drop 12 | . 2 . . 4 6 Fire 97 | . 24 . . 16 57 Melee . | . . . . . . Ram . | . . . . . . Kick . | . . . . . . Crush . | . . . . . . Escape Stasis . | . . . . . . Rewire . | . . . . . . Trap . | . . . . . . Miscellaneous . | . . . . . . Route ------- -11/Scrapyard -10/Materials -10/Mines -10/Exiles -9/Mines -8/Materials History --------- Turn | Location | Event 26 | -11/Scrapyard | Discovered new exit (range 15) 57 | -11/Scrapyard | Entered Materials 321 | -10/Materials | Build established: Mutant 460 | -10/Materials | Discovered new exit (range 10) 474 | -10/Materials | Entered Mines 521 | -10/Mines | Deemed a non-threat by the Exiles lab entrance 522 | -10/Mines | Discovered new exit (range 5) 529 | -10/Mines | Entered Exiles 569 | -10/Exiles | Met 8R-AWN 597 | -10/Exiles | Met EX-HEX 685 | -10/Exiles | Met EX-DEC 763 | -10/Exiles | Discovered new exit (range 10) 832 | -10/Exiles | Entered Mines 1000 | -9/Mines | Assembled infested the area 1005 | -9/Mines | Assisted by a Guerilla fighting off Assembled 1040 | -9/Mines | Met a Derelict shopkeep closing up shop 1106 | -9/Mines | Learned Materials emergency access door positions 1210 | -9/Mines | Discovered new exit (range 15) 1238 | -9/Mines | Entered Materials 1238 | -8/Materials | Evolved 4 slots: Utility x2, Weapon x2 1732 | -8/Materials | Build established: Scavenger-Gunner 2068 | -8/Materials | Destroyed 7 combat bots 2071 | -8/Materials | Lost 5 parts (2n1u2w) 2075 | -8/Materials | Self-destructed Last Messages --------------- U-05 Engineer lays Concrete. K-01 Serf collects debris. U-05 Engineer lays Concrete. Acquired 44 matter. U-05 Engineer lays Concrete. U-05 Engineer builds a Door. U-05 Engineer lays Concrete. K-01 Serf collects debris. K-01 Serf cleans the Scanalyzer. U-05 Engineer builds a Wall. S-10 Pest knocked back. U-05 Engineer builds a Wall. ALERT: Construction progress impeded, dispatching reinforcements to local area. U-05 Engineer builds a Wall. K-01 Serf knocked back. S-10 Pest knocked back. Nuclear Core destroyed. S-10 Pest knocked back. U-05 Engineer builds a Wall. K-01 Serf destroyed. Map ----- +----------------------------------------------------+ | ????????????????????# == #???????????# ##! | | ????????????????????# == #???######+## ###! | | ????????????????????# """ #???# ## #### | | ????????????????????# """ #???# """ # #?? | | ????????????????????# """ #???# """ + * #?? | | ????????????????????# ##### """ #[[[#?? | | ????????????????????# + + ##%##?? | | ????????????????###+#####+######### ! ! ##=#??? | | ????????????????# + #??????#########!#??? | | ????????????????# # #??????????????# #??? | | ????????????????#""" # #??????????????# #??? | | ????????????????#""" + #?????????????? #??? | | ????????????????#""" # #??????????????# #??? | | ????????????????# ??# #??????????????# #### | | ????????????????#####??# #?######???????# | | ???????????????????????# #? #???????# | | ???????????????????????# # """ #????# | | ???????????????? ???# # """ #???? # #### | | ???????????????? """???# + """ #???????? ???? | | ???????????????# """"??# # #???????? ???? | | ???????????????# """""?# # ] #???????? ???? | | ???????????????# # #?######???????? ???? | | ?????????????????""""" # ###########?????????? | | ???????????????# """"" ! "" ?#??????? | | ???????????????# """"" # ""S ![ ??????? | | ???????????????# @*= k "" [[ #??????? | | ???????????????+ =%== # [ #??????? | | ???????????????# *%%s# #??????? | | ???????????????#######r =% ##############??????? | | ???????????????????? r s s ?????????????????? | | ?????????????????? ????????????????? | | ???????????????? u u s ????????????????? | | ???????????????######## ########???????????????? | | ??????????????????????# ## ##??????????????????? | | ?????????????????????? k #???????????????????? | | ?????????????????????""""" #???????????????????? | | ?????????????????????""""" #???????????????????? | | ?????????????????????""""" +?????+?????????????? | | ?????????????????????????? #???????????????????? | | ??????????????????????????[#???????????????????? | | ??????????????????????????#????????????????????? | | ???????????????????????????????????????????????? | | ???????????????????????????????????????????????? | | ???????????????????????????????????????????????? | | ???????????????????????????????????????????????? | | ???????????????????????????????????????????????? | | ???????????????????????????????????????????????? | | ???????????????????????????????????????????????? | | ???????????????????????????????????????????????? | | ???????????????????????????????????????????????? | +----------------------------------------------------+ Best States ------------- Heat Dissipation 45 Energy Generation 14 Energy Capacity 250 Matter Stores 300 Matter Capacity 300 Sight Range 18 Terrain Scan Range 14 Terrain Scan Density 10 Evasion (%) 50 Targeting Accuracy 5 Recoil Reduction 2 Item Schematics ----------------- None Robot Schematics ------------------ None Fabricated ------------ Nothing Alien Tech Used ----------------- None Achievements -------------- None Challenges ------------ None Game ------ Seed ArmoredHellfireShotgun Manual? 0 Play Time 00:19:19 Cumulative 15.7 hours Start 2022.07.29 @ 19:16:42 End 2022.07.29 @ 19:33:35 Sessions 1 Manual Loads 0 Difficulty Rogue Special Mode None Game No. 45 Rogue 45 Adventurer 0 Explorer 0 Win Type - Total 0 Types 0/0/0/0/0/0/0/0/0 Lore% 21 Gallery% 20 Achievement% 17 Wizard Run 0 Options --------- ASCII 0 Keyboard 0 Movement Mouse Keybinds 0 Fullscreen 1 Font 14/SmallcapsGlow Map View 84x54 Tactical HUD 0 Map Filters NONE Filters NONE Steam 1 RUN: 9bb97fdf-fa7d-4aec-8914-a5b01a4495ff